fUST/lending_fUST_20250120
["ID","MTS","AMOUNT","RATE_DAILY","PERIOD"]
[349647420,1737355836317,-3000.0,0.000221,2]
[349647421,1737355836326,-206.21772586,0.000221,3]
[349647422,1737355836336,-3522.117654,0.0002211,2]
[349647423,1737355836345,-500.0,0.00022191,2]
[349647424,1737355836357,-414.93370818,0.00022191,3]
[349647425,1737355836367,-500.0,0.00022191,3]
[349647426,1737355836376,-897.29,0.00022191,2]
[349647427,1737355836386,-500.0,0.00022191,3]
[349647428,1737355836395,-882.34,0.00022191,3]
[349647429,1737355836404,-597.35,0.00022191,3]
[349647430,1737355836414,-500.0,0.00022191,3]
[349647431,1737355836424,-519.79,0.00022191,3]
[349647432,1737355836434,-706.95,0.00022191,3]
[349647433,1737355836444,-2920.31,0.00022191,3]
[349647434,1737355836454,-344.83628684,0.00022191,3]
[349647502,1737355838244,-293.659568,0.00021698,2]
[349647504,1737355838255,-284.16564112,0.00021916,2]
[349647506,1737355838264,-476.44039144,0.00021917,3]
[349647508,1737355838275,-500.0,0.00021917,3]
[349647510,1737355838286,-500.0,0.00021917,3]
[349647512,1737355838297,-500.0,0.00022054,3]
[349647514,1737355838315,-500.0,0.00022054,3]
[349647516,1737355838325,-155.16371316,0.00022191,3]
[349647518,1737355838335,-1534.11809909,0.00022191,3]
[349647520,1737355838351,-15.61190091,0.00022191,3]
[349647522,1737355838362,-1768.62,0.00022191,3]
[349647524,1737355838371,-2722.34809909,0.00022191,3]
[349647526,1737355838384,-500.0,0.00022191,3]
[349647530,1737355838405,-1538.01190091,0.00022191,3]
[349647532,1737355838414,-337.42222797,0.00022191,3]
[349647534,1737355838426,-429.76777203,0.00022191,3]
[349647536,1737355838438,-500.0,0.00022191,3]
[349647538,1737355838448,-500.0,0.00022191,3]
[349647540,1737355838457,-193.28,0.00022191,3]
[349647542,1737355838467,-500.0,0.00022191,3]
[349647544,1737355838475,-391.33,0.00022191,3]
[349647545,1737355838485,-612.12,0.00022191,3]
[349647548,1737355838496,-533.94,0.00022191,3]
[349647550,1737355838505,-1304.94210529,0.00022191,3]
[349647552,1737355838521,-404.49789471,0.00022191,3]
[349647554,1737355838531,-565.02,0.00022191,3]
[349647556,1737355838541,-500.0,0.00022191,3]
[349647558,1737355838555,-500.0,0.00022191,3]
[349647560,1737355838564,-913.91,0.00022191,3]
[349647562,1737355838574,-644.94,0.00022191,3]
[349647564,1737355838583,-6263.24,0.00022191,3]
[349647566,1737355838593,-500.0,0.00022191,3]
[349647568,1737355838602,-3955.79,0.00022191,3]
[349647570,1737355838611,-500.0,0.00022191,3]
[349647572,1737355838620,-500.0,0.00022191,3]
[349647574,1737355838630,-500.0,0.00022191,3]
[349647576,1737355838639,-500.0,0.00022191,3]
[349647578,1737355838650,-639.64,0.00022191,3]
[349647580,1737355838661,-2862.17,0.00022191,3]
[349647582,1737355838671,-500.0,0.00022191,3]
[349647584,1737355838681,-500.0,0.00022191,3]
[349647586,1737355838691,-500.0,0.00022191,3]
[349647588,1737355838702,-158.0,0.00022247,2]
[349647590,1737355838711,-158.0,0.00022247,2]
[349647592,1737355838721,-158.0,0.00022247,2]
[349647594,1737355838731,-158.0,0.00022247,2]
[349647596,1737355838740,-158.0,0.00022247,2]
[349647598,1737355838750,-158.0,0.00022247,2]
[349647600,1737355838759,-158.0,0.00022247,2]
[349647602,1737355838768,-158.0,0.00022247,2]
[349647604,1737355838777,-158.0,0.00022247,2]
[349647606,1737355838787,-158.0,0.00022247,2]
[349647608,1737355838801,-158.0,0.00022247,2]
[349647610,1737355838810,-158.0,0.00022247,2]
[349647612,1737355838820,-158.0,0.00022247,2]
[349647614,1737355838829,-158.0,0.00022247,2]
[349647616,1737355838838,-158.0,0.00022247,2]
[349647618,1737355838847,-158.0,0.00022247,2]
[349647620,1737355838857,-158.0,0.00022247,2]
[349647622,1737355838866,-158.0,0.00022247,2]
[349647624,1737355838876,-206.21772586,0.000223,3]
[349647626,1737355838885,-500.0,0.00022328,2]
[349647628,1737355838894,-500.0,0.00022328,3]
[349647630,1737355838904,-897.29,0.00022328,2]
[349647632,1737355838913,-286.38185619,0.00022328,3]
[349647634,1737355838923,-882.34,0.00022328,3]
[349647636,1737355838932,-500.0,0.00022328,3]
[349647638,1737355838941,-706.95,0.00022328,3]
[349647640,1737355838951,-500.0,0.00022328,3]
[349647642,1737355838961,-1549.73,0.00022328,3]
[349647644,1737355838970,-1768.62,0.00022328,3]
[349647646,1737355838980,-4760.36,0.00022328,3]
[349647648,1737355838989,-767.19,0.00022328,3]
[349647650,1737355838998,-500.0,0.00022328,3]
[349647652,1737355839009,-500.0,0.00022328,3]
[349647654,1737355839018,-500.0,0.00022328,3]
[349647656,1737355839028,-533.94,0.00022328,3]
[349647658,1737355839038,-1709.44,0.00022328,3]
[349647660,1737355839051,-565.02,0.00022328,3]
[349647662,1737355839061,-500.0,0.00022328,3]
[349647664,1737355839071,-500.0,0.00022328,3]
[349647666,1737355839080,-913.91,0.00022328,3]
[349647668,1737355839090,-644.94,0.00022328,3]
[349647670,1737355839099,-6263.24,0.00022328,3]
[349647672,1737355839108,-500.0,0.00022328,3]
[349647674,1737355839118,-3955.79,0.00022328,3]
[349647676,1737355839127,-500.0,0.00022328,3]
[349647678,1737355839136,-203.26,0.00022328,3]
[349647680,1737355839146,-500.0,0.00022328,3]
[349647682,1737355839156,-500.0,0.00022328,3]
[349647684,1737355839166,-639.64,0.00022328,3]
[349647686,1737355839175,-2862.17,0.00022328,3]
[349647688,1737355839185,-500.0,0.00022328,3]
[349647690,1737355839194,-500.0,0.00022328,3]
[349647692,1737355839204,-500.0,0.00022328,3]
[349647694,1737355839213,-116.42528129,0.00022398,2]
[349647819,1737355840465,-500.0,0.00021917,3]
[349647821,1737355840475,-500.0,0.00021917,3]
[349647823,1737355840486,-876.73229566,0.00021917,3]
[349647826,1737355840498,-482.54770434,0.00021917,3]
[349647828,1737355840508,-104.88426749,0.00022398,2]
[349648082,1737355843304,-500.0,0.00021917,2]
[349648083,1737355843314,-1359.28,0.00022054,3]
[349648084,1737355843323,-500.0,0.00022054,2]
[349648085,1737355843332,-1359.28,0.00022191,3]
[349648086,1737355843344,-500.0,0.00022191,2]
[349648087,1737355843353,-1359.28,0.00022328,3]
[349648088,1737355843366,-500.0,0.00022328,2]
[349648089,1737355843376,-278.69045122,0.00022398,2]
[349648090,1737355843387,-500.0,0.00022398,2]
[349648091,1737355843396,-500.0,0.00022398,2]
[349648092,1737355843405,-431.12377869,0.00022433,2]
[349648093,1737355843415,-500.0,0.00022433,2]
[349648094,1737355843424,-500.0,0.00022435,2]
[349648095,1737355843433,-500.0,0.00022435,2]
[349648096,1737355843443,-511.48462914,0.00022465,3]
[349648097,1737355843452,-897.29,0.00022465,2]
[349648098,1737355843462,-189.86469295,0.00022465,3]
[349648099,1737355843472,-706.95,0.00022465,3]
[349648100,1737355843481,-500.0,0.00022465,3]
[349648101,1737355843491,-469.75644856,0.00022465,3]
[349648102,1737355843502,-495.17738865,0.00022465,3]
[349648103,1737355843525,-690.37523694,0.00022465,3]
[349648104,1737355843537,-113.31092585,0.00022465,3]
[349648106,1737355843546,-3875.46230622,0.00022465,3]
[349648107,1737355843561,-884.89769378,0.00022465,3]
[349648108,1737355843570,-767.19,0.00022465,3]
[349648109,1737355843580,-311.81852643,0.00022465,3]
[349648110,1737355843590,-500.0,0.00022465,3]
[349648111,1737355843599,-533.94,0.00022465,3]
[349648112,1737355843609,-1709.44,0.00022465,3]
[349648113,1737355843618,-565.02,0.00022465,3]
[349648114,1737355843628,-500.0,0.00022465,3]
[349648115,1737355843638,-500.0,0.00022465,3]
[349648116,1737355843648,-913.91,0.00022465,3]
[349648117,1737355843658,-644.94,0.00022465,3]
[349648118,1737355843669,-6263.24,0.00022465,3]
[349648119,1737355843679,-640.6,0.00022465,3]
[349648120,1737355843689,-3955.79,0.00022465,3]
[349648121,1737355843699,-500.0,0.00022465,3]
[349648122,1737355843708,-500.0,0.00022465,3]
[349648123,1737355843718,-500.0,0.00022465,3]
[349648125,1737355843727,-639.64,0.00022465,3]
[349648127,1737355843737,-2862.17,0.00022465,3]
[349648129,1737355843747,-500.0,0.00022465,3]
[349648131,1737355843756,-500.0,0.00022465,3]
[349648133,1737355843766,-500.0,0.00022465,3]
[349648135,1737355843775,-1359.28,0.00022465,3]
[349648136,1737355843785,-500.0,0.00022465,2]
[349648137,1737355843794,-500.0,0.00022475,2]
[349648138,1737355843806,-500.0,0.00022475,2]
[349648139,1737355843815,-500.0,0.00022475,2]
[349648140,1737355843824,-3708.50117499,0.000225,2]
[349648141,1737355843840,-17600.92588647,0.000225,2]
[349648142,1737355843862,-5868.82191938,0.000225,2]
[349648355,1737355846386,-173.39247446,0.00021817,2]
[349648357,1737355846396,-694.31,0.00021917,3]
[349648359,1737355846406,-151.0,0.00021917,2]
[349648361,1737355846416,-694.31,0.00022054,3]
[349648363,1737355846425,-369.98752554,0.00022191,3]
[349648374,1737355846523,-324.32247446,0.00022191,3]
[349648376,1737355846533,-178.57752554,0.00022328,3]
[349648957,1737355852549,10654.33649475,0.00023686,120]
[349649136,1737356174552,372.74059415,0.0002,2]
[349649137,1737356221410,1356.51454223,0.0002,2]
[349649138,1737356225384,832.0,0.0002,3]
[349649139,1737356225689,830.0,0.0002,3]
[349649140,1737356226012,830.0,0.0002,3]
[349649141,1737356226341,830.0,0.0002,3]
[349649142,1737356279614,1227.84422273,0.0002,2]
[349649143,1737356287822,303.23346945,0.0001984,2]
[349649144,1737356357415,5000.0,0.0002,2]
[349649147,1737356404266,306.98233151,0.0001984,2]
[349649149,1737356456678,4000.0,0.0002,2]
[349649151,1737356551763,163.865248,0.00013973,2]
[349649153,1737356571480,1303.55,0.0002,2]
[349649156,1737356635441,301.79858213,0.000199,2]
[349649157,1737356683401,654.4663506,0.00019982,2]
[349649233,1737356928868,1552.30346469,0.000189,2]
[349649306,1737357032954,-1364.4100908,0.00020049,2]
[349649307,1737357032964,-857.6156152,0.00020207,2]
[349649308,1737357032973,-500.0,0.00020414,2]
[349649309,1737357032983,-500.0,0.00020592,7]
[349649310,1737357032992,-5675.38545768,0.00020592,2]
[349649311,1737357033005,-24900.0,0.00020593,2]
[349649312,1737357033015,-176.109863,0.00020603,2]
[349649313,1737357033025,-287.26583526,0.000207,2]
[349649314,1737357033035,-2143.0,0.00020841,2]
[349649315,1737357033045,-393.022541,0.00021258,2]
[349649316,1737357033055,-500.0,0.00021277,9]
[349649317,1737357033066,-600.742,0.0002137,2]
[349649318,1737357033076,-309.8371222,0.00021552,2]
[349649319,1737357033086,-536.0,0.00021555,2]
[349649320,1737357033096,-2064.0,0.00021555,2]
[349649321,1737357033107,-2307.0,0.00021555,2]
[349649322,1737357033117,-10935.15082418,0.00021566,2]
[349649323,1737357033126,-254.50437136,0.00021599,2]
[349649324,1737357033136,-500.0,0.00021599,2]
[349649325,1737357033146,-273.75388568,0.00021599,2]
[349649326,1737357033155,-500.0,0.00021599,2]
[349649327,1737357033165,-500.0,0.00021599,2]
[349649328,1737357033175,-500.0,0.00021599,2]
[349649329,1737357033185,-11787.61367846,0.000216,5]
[349649330,1737357033195,-490113.14143718,0.000216,15]
[349649332,1737357036820,-395.0,0.00021555,2]
[349649333,1737357036831,-500.0,0.00021599,2]
[349649334,1737357036841,-500.0,0.00021599,2]
[349649335,1737357036851,-500.0,0.00021599,2]
[349649336,1737357036861,-500.0,0.00021599,2]
[349649338,1737357036871,-500.0,0.00021599,2]
[349649340,1737357036881,-500.0,0.00021599,2]
[349649342,1737357036891,-568.32350436,0.00021599,2]
[349649344,1737357036900,-500.0,0.00021599,2]
[349649346,1737357036910,-500.0,0.00021599,2]
[349649347,1737357036919,-500.0,0.00021599,2]
[349649349,1737357036929,-500.0,0.00021599,2]
[349649351,1737357036938,-500.0,0.00021599,2]
[349649353,1737357036948,-500.0,0.00021599,2]
[349649355,1737357036957,-500.0,0.00021599,2]
[349649357,1737357036967,-500.0,0.00021599,2]
[349649359,1737357036976,-418.4109868,0.00021599,2]
[349649361,1737357036986,-500.0,0.00021599,2]
[349649363,1737357036996,-500.0,0.00021599,2]
[349649365,1737357037010,-500.0,0.00021599,2]
[349649367,1737357037019,-465.42390244,0.00021599,2]
[349649369,1737357037029,-280.37560785,0.00021599,2]
[349649371,1737357037038,-500.0,0.00021599,2]
[349649373,1737357037049,-500.0,0.00021599,2]
[349649375,1737357037058,-500.0,0.00021599,2]
[349649377,1737357037069,-500.0,0.00021599,2]
[349649379,1737357037079,-500.0,0.00021599,2]
[349649381,1737357037090,-500.0,0.00021599,2]
[349649383,1737357037100,-500.0,0.00021599,2]
[349649385,1737357037110,-500.0,0.00021599,2]
[349649387,1737357037120,-500.0,0.00021599,2]
[349649389,1737357037129,-500.0,0.00021599,2]
[349649391,1737357037139,-500.0,0.00021599,2]
[349649393,1737357037149,-491.42826345,0.00021599,2]
[349649395,1737357037159,-500.0,0.00021599,2]
[349649397,1737357037168,-500.0,0.00021599,2]
[349649399,1737357037178,-500.0,0.00021599,2]
[349649402,1737357037194,-382.00868608,0.00021599,2]
[349649436,1737357038440,-117.99131392,0.00021599,2]
[349649438,1737357038450,-419.08633192,0.00021599,2]
[349649440,1737357038461,-500.0,0.00021599,2]
[349649442,1737357038471,-500.0,0.00021599,2]
[349649443,1737357038481,-500.0,0.00021599,2]
[349649445,1737357038491,-500.0,0.00021599,2]
[349649446,1737357038501,-500.0,0.00021599,2]
[349649448,1737357038514,-500.0,0.00021599,2]
[349649449,1737357038524,-500.0,0.00021599,2]
[349649451,1737357038534,-350.0,0.00021599,2]
[349649452,1737357038544,-500.0,0.00021599,2]
[349649454,1737357038554,-500.0,0.00021599,2]
[349649456,1737357038564,-500.0,0.00021599,2]
[349649458,1737357038575,-469.37439523,0.00021599,2]
[349649460,1737357038586,-500.0,0.00021599,2]
[349649461,1737357038596,-500.0,0.00021599,2]
[349649463,1737357038606,-500.0,0.00021599,2]
[349649464,1737357038616,-500.0,0.00021599,2]
[349649466,1737357038627,-500.0,0.00021599,2]
[349649467,1737357038643,-500.0,0.00021599,2]
[349649468,1737357038653,-577.09596247,0.00021599,2]
[349649469,1737357038663,-500.0,0.00021599,2]
[349649470,1737357038674,-500.0,0.00021599,2]
[349649471,1737357038684,-500.0,0.00021599,2]
[349649472,1737357038694,-500.0,0.00021599,2]
[349649473,1737357038703,-500.0,0.00021599,2]
[349649474,1737357038715,-500.0,0.00021599,2]
[349649475,1737357038726,-500.0,0.00021599,2]
[349649476,1737357038735,-500.0,0.00021599,2]
[349649477,1737357038745,-500.0,0.00021599,2]
[349649478,1737357038759,-500.0,0.00021599,2]
[349649479,1737357038769,-500.0,0.00021599,2]
[349649480,1737357038779,-500.0,0.00021599,2]
[349649481,1737357038789,-500.0,0.00021599,2]
[349649482,1737357038799,-500.0,0.00021599,2]
[349649483,1737357038809,-500.0,0.00021599,2]
[349649484,1737357038821,-500.0,0.00021599,2]
[349649485,1737357038831,-500.0,0.00021599,2]
[349649486,1737357038840,-500.0,0.00021599,2]
[349649487,1737357038850,-620.42626734,0.00021599,2]
[349649488,1737357038860,-500.0,0.00021599,2]
[349649489,1737357038871,-500.0,0.00021599,2]
[349649490,1737357038881,-500.0,0.00021599,2]
[349649491,1737357038891,-500.0,0.00021599,2]
[349649492,1737357038901,-294.02572912,0.00021599,2]
[349649493,1737357038918,-205.97427088,0.00021599,2]
[349649494,1737357038928,-128.28572512,0.00021599,2]
[349649593,1737357045661,-371.71427488,0.00021599,2]
[349649597,1737357045671,-500.0,0.00021599,2]
[349649600,1737357045682,-500.0,0.00021599,2]
[349649603,1737357045692,-273.22963981,0.00021599,2]
[349649606,1737357045702,-500.0,0.00021599,2]
[349649609,1737357045711,-500.0,0.00021599,2]
[349649612,1737357045720,-500.0,0.00021599,2]
[349649616,1737357045730,-500.0,0.00021599,2]
[349649619,1737357045739,-500.0,0.00021599,2]
[349649622,1737357045749,-500.0,0.00021599,2]
[349649624,1737357045765,-500.0,0.00021599,2]
[349649627,1737357045775,-500.0,0.00021599,2]
[349649629,1737357045784,-500.0,0.00021599,2]
[349649631,1737357045794,-7785.09102761,0.000216,15]
[349649633,1737357045807,-1836.2442344,0.000216,15]
[349649644,1737357045897,-37881.9428861,0.000216,15]
[349649647,1737357045909,-38315.71992163,0.000216,15]
[349649658,1737357046011,-28629.48485745,0.000216,15]
[349649693,1737357046335,-2229.8,0.000216,15]
[349649730,1737357046614,-38500.64180796,0.000216,15]
[349649732,1737357046626,-681515.60347009,0.000216,15]
[349650276,1737357052533,25297.41710944,0.00023685,120]
[349651927,1737357095931,179.4628867,0.00024,120]
[349651933,1737357230037,1620.43884914,0.000195,2]
[349651934,1737357244357,1316.85169235,0.0002,2]
[349651937,1737357444038,164.013343,0.00013973,2]
[349651939,1737357531605,1080.2925661,0.000195,2]
[349651940,1737357714017,12477.9930605,0.00019449,2]
[349651941,1737357714896,12477.9930605,0.00019678,2]
[349651942,1737357715235,12477.9930605,0.00019832,2]
[349651943,1737357726581,377.07624652,0.0002,2]
[349651944,1737357734474,216.42171041,0.0002,2]
[349651945,1737357749857,32166.44503742,0.00016,2]
[349651948,1737357832926,823.62741536,0.000195,2]
[349651971,1737358065687,599.679026,0.0001958,2]
[349651982,1737358105882,318.77998911,0.0001881,2]
[349651983,1737358110127,663.8123107,0.000176,2]
[349651984,1737358112015,20974.30581025,0.00019491,2]
[349652024,1737358199113,8483.18974616,0.00024,120]
[349652134,1737358233354,-549.08494358,0.000189,2]
[349652135,1737358233364,-1249.78357454,0.00019,2]
[349652137,1737358233375,-1026.25403636,0.00019491,2]
[349652138,1737358233388,-2899.44015339,0.00019491,2]
[349652139,1737358233398,-12079.66863683,0.0001958,2]
[349652140,1737358233407,-12079.66863683,0.00019963,2]
[349652141,1737358233417,-348.03781071,0.0002,2]
[349652142,1737358233427,-12079.66863683,0.00020223,2]
[349652143,1737358233437,-713.3515099,0.00020335,2]
[349652144,1737358233446,-300.0,0.00020346,2]
[349652145,1737358233456,-500.0,0.00020414,2]
[349652146,1737358233466,-12079.66863683,0.00020417,2]
[349652147,1737358233476,-500.0,0.00020462,7]
[349652148,1737358233486,-1916.57189079,0.00020538,2]
[349652149,1737358233498,-12079.66863683,0.00020588,2]
[349652150,1737358233510,-166.964,0.00020638,2]
[349652151,1737358233520,-152.0,0.0002069,2]
[349652152,1737358233530,-299.656191,0.00020787,2]
[349652153,1737358233540,-178.126745,0.0002097,2]
[349652154,1737358233549,-379.5033735,0.00021,8]
[349652155,1737358233559,-1000.0,0.00021,21]
[349652156,1737358233569,-1000.0,0.00021,2]
[349652157,1737358233579,-508.781,0.00021,2]
[349652158,1737358233588,-187.64,0.00021,2]
[349652159,1737358233597,-178.126745,0.00021054,2]
[349652160,1737358233607,-1916.57189074,0.00021059,2]
[349652161,1737358233616,-12079.66863683,0.00021088,2]
[349652162,1737358233626,-178.126745,0.00021138,2]
[349652163,1737358233636,-500.0,0.00021147,9]
[349652164,1737358233646,-192.0,0.00021156,2]
[349652165,1737358233656,-178.126745,0.00021222,2]
[349652166,1737358233666,-12079.66863683,0.00021282,2]
[349652167,1737358233677,-2746.10971829,0.00021297,2]
[349652168,1737358233687,-2746.10971827,0.00021298,2]
[349652169,1737358233697,-2746.10971827,0.00021299,2]
[349652170,1737358233706,-2746.10971827,0.00021299,2]
[349652171,1737358233715,-2746.10971827,0.000213,2]
[349652172,1737358233725,-178.126745,0.00021306,2]
[349652173,1737358233734,-654.679,0.0002137,2]
[349652174,1737358233744,-500.0,0.00021373,2]
[349652175,1737358233759,-500.0,0.00021373,2]
[349652176,1737358233769,-532.35211508,0.00021373,2]
[349652177,1737358233780,-500.0,0.00021373,2]
[349652178,1737358233791,-500.0,0.00021373,2]
[349652179,1737358233802,-159.22762496,0.00021373,2]
[349652180,1737358233812,-500.0,0.00021373,2]
[349652181,1737358233822,-500.0,0.00021373,2]
[349652182,1737358233832,-266.29744244,0.00021373,2]
[349652183,1737358233842,-500.0,0.00021373,2]
[349652184,1737358233852,-269.40390427,0.00021373,2]
[349652185,1737358233862,-485.66478432,0.00021373,2]
[349652186,1737358233872,-763.48,0.00021387,3]
[349652187,1737358233883,-178.126745,0.0002139,2]
[349652188,1737358233892,-160.0,0.00021396,2]
[349652189,1737358233902,-170.42073059,0.00021397,2]
[349652190,1737358233912,-500.0,0.00021397,2]
[349652191,1737358233922,-500.0,0.00021397,2]
[349652192,1737358233932,-500.0,0.00021397,2]
[349652193,1737358233941,-500.0,0.00021397,2]
[349652194,1737358233951,-500.0,0.00021397,2]
[349652195,1737358233960,-500.0,0.00021397,2]
[349652196,1737358233970,-801.7450073,0.00021397,2]
[349652197,1737358233980,-500.0,0.00021397,2]
[349652198,1737358233990,-458.84210679,0.00021397,2]
[349652199,1737358234002,-500.0,0.00021397,2]
[349652200,1737358234011,-500.0,0.00021397,2]
[349652201,1737358234021,-500.0,0.00021397,2]
[349652202,1737358234032,-500.0,0.00021397,2]
[349652203,1737358234041,-500.0,0.00021397,2]
[349652204,1737358234054,-801.7450073,0.00021397,2]
[349652205,1737358234064,-500.0,0.00021397,2]
[349652206,1737358234074,-500.0,0.00021397,2]
[349652207,1737358234084,-500.0,0.00021397,2]
[349652208,1737358234094,-500.0,0.00021397,2]
[349652209,1737358234103,-500.0,0.00021397,2]
[349652210,1737358234113,-629.69005994,0.00021397,2]
[349652211,1737358234123,-801.7450073,0.00021397,2]
[349652212,1737358234133,-500.0,0.00021397,2]
[349652213,1737358234143,-500.0,0.00021397,2]
[349652214,1737358234152,-627.97613451,0.00021397,2]
[349652215,1737358234162,-500.0,0.00021397,2]
[349652216,1737358234172,-500.0,0.00021397,2]
[349652217,1737358234182,-801.7450073,0.00021397,2]
[349652218,1737358234192,-500.0,0.00021397,2]
[349652219,1737358234201,-500.0,0.00021397,2]
[349652220,1737358234211,-500.0,0.00021397,2]
[349652221,1737358234220,-500.0,0.00021397,2]
[349652222,1737358234230,-801.7450073,0.00021397,2]
[349652223,1737358234240,-500.0,0.00021397,2]
[349652224,1737358234254,-500.0,0.00021397,2]
[349652225,1737358234264,-500.0,0.00021397,2]
[349652226,1737358234273,-500.0,0.00021397,2]
[349652227,1737358234283,-500.0,0.00021397,2]
[349652228,1737358234389,-801.7450073,0.00021397,2]
[349652229,1737358234399,-500.0,0.00021397,2]
[349652230,1737358234409,-241.95421238,0.00021397,2]
[349652231,1737358234418,-333.87525481,0.00021397,2]
[349652232,1737358234427,-801.7450073,0.00021397,2]
[349652233,1737358234437,-500.0,0.00021397,2]
[349652234,1737358234446,-500.0,0.00021397,2]
[349652235,1737358234455,-500.0,0.00021397,2]
[349652236,1737358234464,-801.7450073,0.00021397,2]
[349652237,1737358234474,-500.0,0.00021397,2]
[349652238,1737358234488,-801.7450073,0.00021397,2]
[349652239,1737358234501,-500.0,0.00021397,2]
[349652240,1737358234511,-500.0,0.00021397,2]
[349652241,1737358234522,-801.7450073,0.00021397,2]
[349652242,1737358234532,-500.0,0.00021397,2]
[349652243,1737358234542,-500.0,0.00021397,2]
[349652244,1737358234552,-801.7450073,0.00021397,2]
[349652245,1737358234562,-801.7450073,0.00021397,2]
[349652246,1737358234572,-500.0,0.00021397,2]
[349652247,1737358234582,-500.0,0.00021397,2]
[349652248,1737358234592,-801.7450073,0.00021397,2]
[349652249,1737358234602,-500.0,0.00021397,2]
[349652250,1737358234611,-801.7450073,0.00021397,2]
[349652251,1737358234622,-500.0,0.00021397,2]
[349652252,1737358234632,-500.0,0.00021397,2]
[349652253,1737358234642,-801.7450073,0.00021397,2]
[349652254,1737358234651,-500.0,0.00021397,2]
[349652255,1737358234662,-33.14382942,0.00021397,2]
[349652256,1737358234677,-768.60117788,0.00021397,2]
[349652257,1737358234687,-801.7450073,0.00021397,2]
[349652258,1737358234696,-500.0,0.00021397,2]
[349652259,1737358234706,-801.7450073,0.00021397,2]
[349652260,1737358234716,-500.0,0.00021397,2]
[349652261,1737358234726,-391.76357577,0.00021397,2]
[349652303,1737358238527,-409.98143153,0.00021397,2]
[349652305,1737358238538,-500.0,0.00021397,2]
[349652308,1737358238547,-801.7450073,0.00021397,2]
[349652310,1737358238557,-500.0,0.00021397,2]
[349652312,1737358238566,-801.7450073,0.00021397,2]
[349652314,1737358238575,-500.0,0.00021397,2]
[349652316,1737358238583,-801.7450073,0.00021397,2]
[349652318,1737358238593,-500.0,0.00021397,2]
[349652320,1737358238602,-801.7450073,0.00021397,2]
[349652322,1737358238611,-500.0,0.00021397,2]
[349652324,1737358238620,-801.7450073,0.00021397,2]
[349652326,1737358238630,-500.0,0.00021397,2]
[349652328,1737358238639,-801.7450073,0.00021397,2]
[349652330,1737358238648,-801.7450073,0.00021397,2]
[349652332,1737358238657,-801.7450073,0.00021397,2]
[349652334,1737358238666,-500.0,0.00021397,2]
[349652336,1737358238675,-488.95962687,0.00021397,2]
[349652541,1737358240770,-312.78538043,0.00021397,2]
[349652543,1737358240780,-801.7450073,0.00021397,2]
[349652545,1737358240789,-801.7450073,0.00021397,2]
[349652547,1737358240798,-801.7450073,0.00021397,2]
[349652549,1737358240808,-500.0,0.00021397,2]
[349652551,1737358240817,-527.14928503,0.00021397,2]
[349652924,1737358244497,-274.59572227,0.00021397,2]
[349652926,1737358244511,-36.99873013,0.00021397,2]
[349652930,1737358244543,-463.00126987,0.00021397,2]
[349652933,1737358244553,-801.7450073,0.00021397,2]
[349652935,1737358244562,-500.0,0.00021397,2]
[349652936,1737358244572,-801.7450073,0.00021397,2]
[349652948,1737358244670,-801.7450073,0.00021397,2]